Cogmind - Beta 9.4 @@@ ROGUE MODE // 2020.02.24 @ 00:35:40 Player: BOBIT Result: Self-destructed Performance ------------- Evolutions (3) 1500 Regions Visited (4) 800 Robots Destroyed (40) 200 Value Destroyed (1162) 1162 Prototype IDs (2) 40 Alien Tech Used (0) 0 Bonus (4) 4 TOTAL SCORE: 3706 Bonus ------- High Alert Combat Kills 4 Cogmind --------- Core Integrity 585/700 Matter 22/400 Energy 82/100 System Corruption 1% Temperature Cool (0) Movement Core (100) Ox1 Location -7/Factory Parts ------- > --- POWER (1) -------- (None) > --- PROPULSION (4) --- Armored Wheel > --- UTILITY (5) ------ Improved Heat Sink Medium Matter Pod Launcher Guidance Computer Target Analyzer > --- WEAPON (3) ------- Mini Grenade Launcher Mini Grenade Launcher > --- INVENTORY (4) ---- Improved Heat Sink Shock Rifle Flak Gun Advanced Assault Cannon Peak State ------------ > --- POWER ------------ (None) > --- PROPULSION ------- Armored Wheel Armored Wheel Armored Wheel Gravmag System > --- UTILITY ---------- Improved Heat Sink Medium Matter Pod Launcher Guidance Computer Launcher Guidance Computer Target Analyzer > --- WEAPON ----------- Flak Gun Mini Grenade Launcher Improved Datajack > --- INVENTORY -------- Improved Heat Sink Shock Rifle Advanced Assault Cannon [Rating: 35] Favorites ----------- Power Heavy Ion Engine Engine Heavy Ion Engine Power Core Light Nuclear Core Propulsion Titanium Leg Treads Light Treads Leg Titanium Leg Wheel Armored Wheel Hover Unit Gravmag System Flight Unit Flight Unit Utility Visual Processing Unit Device Heat Sink Storage Large Storage Unit Processor Visual Processing Unit Weapon Advanced Beam Cannon Energy Gun Medium Laser Energy Cannon Advanced Beam Cannon Ballistic Gun Light Assault Rifle Launcher Mini Grenade Launcher Special Melee Weapon Improved Datajack Build | -11 -10 -9 -8 -7 ------- Run | Scr Mat Mat Mat Fac Slots Evolved 6 | . . 2 2 2 Power . | . . . . . Propulsion 2 | . . . 1 1 Utility 3 | . . 1 1 1 Weapon 1 | . . 1 . . Parts Attached 59 | 6 5 22 13 13 Power 4 | 1 . 2 1 . Engine 3 | 1 . 2 . . Core 1 | . . . 1 . Reactor . | . . . . . Propulsion 18 | 2 . 7 7 2 Treads 5 | 2 . 3 . . Leg 6 | . . 4 2 . Wheel 3 | . . . 3 . Hover 2 | . . . . 2 Flight 2 | . . . 2 . Utility 17 | 1 4 3 2 7 Device 8 | . 1 3 1 3 Storage 5 | 1 2 . 1 1 Processor 4 | . 1 . . 3 Hackware . | . . . . . Protection . | . . . . . Artifact . | . . . . . Weapon 20 | 2 1 10 3 4 Energy Gun 6 | 1 1 4 . . Energy Cannon 6 | . . 5 1 . Ballistic Gun 3 | 1 . 1 . 1 Ballistic Cannon . | . . . . . Launcher 4 | . . . 2 2 Special Weapon . | . . . . . Impact Weapon . | . . . . . Slashing Weapon . | . . . . . Piercing Weapon . | . . . . . Special Melee Weapon 1 | . . . . 1 Unidentified Prototypes 2 | . . 2 . . Parts Lost 15 | . . 8 3 4 Power 1 | . . 1 . . Propulsion 6 | . . 2 2 2 Utility 1 | . . . . 1 Weapon 7 | . . 5 1 1 Highest Loss Streak 4 | . . 3 2 4 Average Slot Usage (%) 88 | . 96 90 77 84 Engine 8 | . 14 10 2 . Treads 9 | . 28 6 . . Leg 9 | . . 13 20 . Wheel 3 | . . . 2 22 Device 9 | . 1 11 13 10 Storage 9 | . 11 11 6 6 Processor 10 | . 11 11 6 15 Energy Gun 9 | . 23 9 . . Energy Cannon 10 | . . 14 19 . Ballistic Gun 2 | . 4 2 . 2 Launcher 1 | . . . . 11 Naked Turns 28 | . . . 28 . Heaviest Build 38 | 10 22 37 38 11 Greatest Support 51 | 40 40 40 51 36 Greatest Overweight (x) 8 | . . 8 1 2 Average Overweight (x) . | . . . . . Largest Inventory Capacity 10 | 6 10 10 10 4 Average Capacity 8 | 5 7 10 8 4 Most Carried 10 | 6 8 10 10 4 Average Carried 6 | 3 5 7 8 2 Final Capacity 10 | 6 10 10 4 4 Final Carried 10 | 6 8 10 4 4 Class Distribution -------------------- 66% | Mutant 33% | Skirmisher Dominant Class ---------------- Mutant | -10/Materials Skirmisher | -9/Materials Skirmisher | -8/Materials Mutant | -7/Factory Resources | -11 -10 -9 -8 -7 ----------- Run | Scr Mat Mat Mat Fac Matter Collected 693 | 216 90 281 55 51 Remotely . | . . . . . Salvage Created 1210 | . 218 599 277 116 Parts 89 | . 14 37 23 15 Haulers Intercepted . | . . . . . Recyclers Shooed 1 | . . 1 . . Parts Field Recycled . | . . . . . Retrieved Matter . | . . . . . Parts Self-Destructed . | . . . . . Prevented . | . . . . . Kills | -11 -10 -9 -8 -7 ------- Run | Scr Mat Mat Mat Fac Combat Hostiles Destroyed 33 | . 5 16 11 1 Guns 14 | . 5 8 . 1 Cannons 11 | . . 8 3 . AOE 8 | . . . 8 . Classes Destroyed 7 | . 2 3 . 2 Worker 2 | . . 1 . 1 Builder 2 | . . . . 2 Watcher 3 | . 1 . . 2 Swarmer 10 | . . 4 6 . Grunt 17 | . 5 7 5 . Sentry 5 | . . 5 . . Programmer 1 | . . . . 1 Best Kill Streak 9 | . 2 4 9 4 Combat Bots Only 9 | . 2 3 9 1 Max Kills in Single Turn 4 | . 2 1 4 2 Gunslinging 1 | . 1 . . . Exploded 4 | . . . 4 . Melee . | . . . . . Uniques/NPCs Destroyed . | . . . . . Combat | -11 -10 -9 -8 -7 -------- Run | Scr Mat Mat Mat Fac Damage Taken 2754 | . 292 929 1029 504 Core 816 | . 32 137 532 115 Absorbed by Shields . | . . . . . Core Remaining (%) 63 | 100 87 65 3 . Volleys Fired 97 | . 24 51 12 10 Largest 3 | . 2 3 3 2 Hottest 204 | . 90 204 204 60 Shots Fired 209 | . 47 120 28 14 Gun 133 | . 47 81 . 5 Cannon 63 | . . 39 24 . Launcher 13 | . . . 4 9 Special . | . . . . . Kinetic 35 | . 3 27 . 5 Thermal 161 | . 44 93 24 . Explosive 13 | . . . 4 9 Electromagnetic . | . . . . . Robot Hit Streak 13 | . 8 13 4 5 Robot Miss Streak 8 | . 4 8 3 5 Penetration Max . | . . . . . Secondary Targets 3 | . 2 1 . . Max Gunslinging Chain 1 | . 1 1 . . Shots Hit Robots 136 | . 31 78 14 13 Core Hits 86 | . 15 34 17 20 Critical Hits 6 | . . 5 1 . Critical Kills 3 | . . 2 1 . Critical Parts Destroyed 3 | . . 3 . . Melee Attacks 3 | . . . . 3 Impact . | . . . . . Slashing . | . . . . . Piercing . | . . . . . Sneak Attacks 2 | . . . . 2 Combat Hostiles . | . . . . . Follow-up Attacks . | . . . . . Damage Inflicted 2503 | . 353 1045 706 399 Guns 1072 | . 345 646 . 81 Cannons 631 | . . 387 244 . Explosions 776 | . . . 458 318 Melee . | . . . . . Ramming 24 | . 8 12 4 . Kinetic 343 | . 14 248 . 81 Thermal 1360 | . 331 785 244 . Explosive 776 | . . . 458 318 Electromagnetic . | . . . . . Impact . | . . . . . Slashing . | . . . . . Piercing . | . . . . . Highest Corruption 1 | . . . . 1 Average Corruption 1 | . . . . 1 Corruption Purged . | . . . . . Overload Shots . | . . . . . Overflow Damage 1 | . . . 1 . Projectiles . | . . . . . Explosions 1 | . . . 1 . Melee . | . . . . . Knockbacks . | . . . . . Impact . | . . . . . Kinetic . | . . . . . Secondary . | . . . . . Self-Inflicted Damage 5 | . . 3 2 . Shots . | . . . . . Rammed 5 | . 2 1 2 . Targets Rammed 7 | . 2 3 2 . Kicked 2 | . . 2 . . Crushed . | . . . . . Highest Temperature 399 | . 366 399 351 . Average Temperature 129 | . 136 111 174 . Received Heat Transfer 954 | . 159 291 396 108 Siege Activations . | . . . . . Robots Corrupted . | . . . . . Combat Hostiles . | . . . . . Parts Fried . | . . . . . Impact Corruptions . | . . . . . Robots Melted . | . . . . . Combat Hostiles . | . . . . . Parts Melted 6 | . 4 1 1 . Heat Transferred 2821 | . 880 1497 444 . Parts Sabotaged . | . . . . . Parts Stolen . | . . . . . Parts Stripped . | . . . . . Power Chain Reactions . | . . . . . Missiles Intercepted . | . . . . . Alert | -11 -10 -9 -8 -7 ------- Run | Scr Mat Mat Mat Fac Peak Influence 470 | . 92 295 470 344 Average Influence 121 | . 20 107 205 281 Maximum Alert Level 2 | . . 1 2 1 Low Security (%) 77 | 100 100 85 75 . Level 1 19 | . . 14 7 100 Level 2 3 | . . . 16 . Level 3 . | . . . . . Level 4 . | . . . . . Level 5 . | . . . . . High Security . | . . . . . Max Security . | . . . . . Squads Dispatched 5 | . 2 2 . 1 Investigation 1 | . . 1 . . Extermination . | . . . . . Reinforcement 4 | . 2 1 . 1 Assault . | . . . . . Garrison . | . . . . . Intercept . | . . . . . Construction Impeded 1 | . . . . 1 Haulers Reinforced . | . . . . . Stealth | -11 -10 -9 -8 -7 --------- Run | Scr Mat Mat Mat Fac Distress Signals 5 | . . 1 2 2 Communications Jammed . | . . . . . Distress Signals . | . . . . . Times Spotted 74 | . 12 26 26 10 Peak Tracking Total 12 | . 3 8 12 5 Tactical Retreats 9 | . 3 2 4 . Traps | -11 -10 -9 -8 -7 ------- Run | Scr Mat Mat Mat Fac Traps Triggered . | . . . . . Indirectly . | . . . . . Trap Hack Attempts . | . . . . . Triggered . | . . . . . Disarmed . | . . . . . Reprogrammed . | . . . . . Reused . | . . . . . Traps Extracted . | . . . . . Installed . | . . . . . Triggered . | . . . . . Machines | -11 -10 -9 -8 -7 ---------- Run | Scr Mat Mat Mat Fac Machines Disabled 4 | . . . 4 . Max in Single Turn 2 | . . . 2 . Machines Sabotaged . | . . . . . Garrisons Compromised . | . . . . . Overloaded Fab Kills . | . . . . . Fab Network Shutdowns . | . . . . . Hacking | -11 -10 -9 -8 -7 --------- Run | Scr Mat Mat Mat Fac Machines Accessed 9 | . 1 5 2 1 Terminals 7 | . . 5 1 1 Fabricators . | . . . . . Repair Stations 1 | . . . 1 . Recycling Units 1 | . 1 . . . Scanalyzers . | . . . . . Garrison Access . | . . . . . Total Hacks 27 | . 1 18 6 2 Successful 16 | . 1 9 5 1 Failed 11 | . . 9 1 1 Catastrophic 3 | . . 2 . 1 Database Lockouts . | . . . . . Manual 8 | . . 6 1 1 Terminals 22 | . . 18 2 2 Fabricators . | . . . . . Repair Stations 4 | . . . 4 . Recycling Units 1 | . 1 . . . Scanalyzers . | . . . . . Garrison Access . | . . . . . Terminal Hacks 12 | . . 9 2 1 Level Access Points 2 | . . 1 1 . Emergency Access Points 2 | . . 1 1 . Alert Level 2 | . . 2 . . Unreport Threat 1 | . . 1 . . Locate Traps 1 | . . 1 . . Registered Components 1 | . . 1 . . Registered Prototypes 1 | . . 1 . . Zone Layout 2 | . . 1 . 1 Fabricator Hacks . | . . . . . Repair Station Hacks 3 | . . . 3 . Scan Component 2 | . . . 2 . Repair 1 | . . . 1 . Recycling Unit Hacks 1 | . 1 . . . Report Inventory 1 | . 1 . . . Scanalyzer . | . . . . . Garrison Access Hacks . | . . . . . Unauthorized Hacks . | . . . . . Terminals . | . . . . . Fabricators . | . . . . . Repair Stations . | . . . . . Recycling Units . | . . . . . Scanalyzers . | . . . . . Garrison Access . | . . . . . Data Cores Recovered . | . . . . . Used . | . . . . . Hacking Detections 8 | . . 5 2 1 Full Trace Events 2 | . . 2 . . Feedback Events . | . . . . . Feedback Blocked . | . . . . . Robot Schematics Acquired . | . . . . . Robots Built . | . . . . . Matter . | . . . . . Time . | . . . . . Total Robot Build Rating . | . . . . . Part Schematics Acquired . | . . . . . Parts Built . | . . . . . Matter . | . . . . . Time . | . . . . . Total Part Build Rating . | . . . . . Parts Repaired 1 | . . . 1 . Time 51 | . . . 51 . Parts Recycled . | . . . . . Recycled Matter . | . . . . . Retrieved Matter . | . . . . . Retrieved Components . | . . . . . Parts Scanalyzed . | . . . . . Part Schematics Acquired . | . . . . . Parts Damaged . | . . . . . Bothacking | -11 -10 -9 -8 -7 ------------ Run | Scr Mat Mat Mat Fac Used RIF Installer . | . . . . . Robots Hacked 2 | . . . . 2 Non-combat 1 | . . . . 1 Combat 1 | . . . . 1 Robot Hacks Applied 3 | . . . . 3 parse_system 2 | . . . . 2 no_distress 1 | . . . . 1 Relay Couplers Released . | . . . . . Robots Rewired . | . . . . . Allies Hacked . | . . . . . Hacks Repelled . | . . . . . Allies | -11 -10 -9 -8 -7 -------- Run | Scr Mat Mat Mat Fac Total Allies . | . . . . . Largest Group . | . . . . . Highest-Rated Group . | . . . . . Highest-Rated Ally . | . . . . . Total Orders . | . . . . . Ally Attacks . | . . . . . Total Damage . | . . . . . Kills . | . . . . . Allies Corrupted . | . . . . . Allies Melted . | . . . . . Intel | -11 -10 -9 -8 -7 ------- Run | Scr Mat Mat Mat Fac Robot Analysis Total . | . . . . . Derelict Logs Recovered . | . . . . . Drone Launches . | . . . . . Drone Recoveries . | . . . . . Exploration | -11 -10 -9 -8 -7 ------------- Run | Scr Mat Mat Mat Fac Turns Passed 1855 | 72 453 749 365 216 Spaces Moved 986 | 45 219 327 234 161 Core 186 | 13 . 1 100 72 Treads 351 | 32 219 100 . . Legs 331 | . . 226 105 . Wheels 34 | . . . 1 33 Hover 56 | . . . . 56 Flight 28 | . . . 28 . Fastest Speed 37 | 50 160 130 37 50 Average Speed 128 | 128 160 155 86 93 Slowest Speed 450 | 160 160 450 160 150 Overloaded Moves . | . . . . . Propulsion Burnouts . | . . . . . Robots Hopped 3 | . . . 3 . Cave-ins Triggered . | . . . . . Exploration Rate (%) 20 | 4 30 32 28 6 Regions Visited 4 Branch Regions . Pre-discovered Areas . | . . . . . Known Exits Taken 2 | . . 1 1 . Unknown Exits Taken 2 | 1 1 . . . Scrap Searched . | . . . . . Spaces Dug . | . . . . . Terrain Destroyed 63 | . . . 18 45 Melee . | . . . . . Projectile . | . . . . . AOE 63 | . . . 18 45 Actions | -11 -10 -9 -8 -7 --------- Run | Scr Mat Mat Mat Fac Total 1386 | 56 278 473 371 208 Wait 145 | . 7 31 93 14 Move 976 | 44 218 326 227 161 Hop 3 | . . . 3 . Pick Up 39 | 6 10 11 10 2 Fast Attach 45 | 6 5 18 7 9 Attach 12 | . . 4 4 4 Detach 17 | . . 12 2 3 Swap 2 | . . . 2 . Drop 40 | . 12 17 9 2 Fire 97 | . 24 51 12 10 Melee 3 | . . . . 3 Ram 2 | . . . 2 . Kick 3 | . . 3 . . Crush 2 | . 2 . . . Escape Stasis . | . . . . . Rewire . | . . . . . Trap . | . . . . . Miscellaneous . | . . . . . Route ------- -11/Scrapyard -10/Materials -9/Materials (discovered 5 exits: *Mat x3 / [*Min x2]) -8/Materials (discovered 3 exits: *Fac x3) -7/Factory History --------- Turn | Location | Event 8 | -11/Scrapyard | Discovered new exit (range 16) 73 | -11/Scrapyard | Entered Materials 313 | -10/Materials | Build established: Mutant 494 | -10/Materials | Discovered new exit (range 10) 526 | -10/Materials | Entered another Materials area 526 | -9/Materials | Evolved 2 slots: Utility x1, Weapon x1 650 | -9/Materials | Lost 3 parts (1p2w) 684 | -9/Materials | Discovered new exit (range 17) 972 | -9/Materials | Discovered new exit (range 18) 1201 | -9/Materials | Identified exit to Materials 1275 | -9/Materials | Entered another Materials area 1275 | -8/Materials | Evolved 2 slots: Propulsion x1, Utility x1 1367 | -8/Materials | Repaired Adv. Beam Cannon 1555 | -8/Materials | Released all parts (10) 1566 | -8/Materials | Core integrity fell below 50% 1591 | -8/Materials | Core integrity fell below 20% 1600 | -8/Materials | Destroyed 9 combat bots 1618 | -8/Materials | Identified exit to Factory 1640 | -8/Materials | Entered Factory 1640 | -7/Factory | Evolved 2 slots: Propulsion x1, Utility x1 1856 | -7/Factory | Self-destructed Last Messages --------------- 01849_ The unstable cave ceiling collapses. 01849_ Dropped Arm. Wheel. 01849_ U-05 Engineer lays Concrete. 01849_ U-05 Engineer builds a Wall. 01849_ Acquired Imp. Hover Unit. 01850_ U-05 Engineer lays Concrete. 01851_ U-05 Engineer builds a Wall. 01852_ Dropped Arm. Wheel. 01852_ U-05 Engineer lays Concrete. 01853_ U-05 Engineer builds a Wall. 01854_ Imp. Datajack destroyed. 01854_ Imp. Hover Unit destroyed. 01855_ The unstable cave ceiling collapses. 01855_ C-30 ARC bursts open, deploying its payload. 01855_ S-27 Virus unfolds itself. 01855_ Lrn. Sensor Array destroyed. 01855_ U-05 Engineer lays Concrete. 01855_ T-07 Excavator destroyed. 01855_ U-05 Engineer lays Concrete. 01856_ Gravmag System destroyed. Map ----- +----------------------------------------------------+ | ?????????????????????????????????????????????????? | | ?????????????????????????????????????????????????? | | ?????????????????????????????????????????????????? | | ?????????????????????????????????????????????????? | | ???# ??? ""? ????????????????????????????????????? | | ???# """ """ "???????????????????????????????????? | | ???# """ """ "???????????????????????????????????? | | ???# ????????????????????????????????????? | | ???# """ """ "???????????????????????????????????? | | ???# """ """ ????????????????????????????????????? | | ???# """ ""??????????????????????????????????????? | | ???? ????? ??????????????????????????????????? | | ######+#### #### ????????????+????????????????? | | # ??????????? #????????????????? | | # ??????????? #????????????????? | | # ?????????? #????????????????? | | """ "" # ?????????? #????????????????? | | """ "" #=?????????u #????????????????? | | """ " # ????????? #????????????????? | | # ???????? #????????????????? | | """ " ???????? #????????????????? | | """ ##??##### #????????????????? | | """ #### ## ##???????????????? | | ## #u #???????????????? | | """ = % ####????????????? | | """ @ s ????????? | | "?? = * s ????????? | | ?? = = Y !%= s %sr ????????? | | "?? = u u ##### ?????????? | | ???? ##### # u #???????????????? | | ???? ## # # ###???????????????? | | ????? ### # #?????????????????? | | ????? ??### #?????????????????? | | ????? ???? [ #?????????????????? | | ?????? ???? ### #?????????????????? | | ?????? #???? !#?? ????????????????? | | ??????? ????" #?? #???????????????? | | ??????? ???? #?? T #???????????????? | | ????????"#### #????""" +???" #???????????????? | | ????????????# ??????"" #????? ?????????????????? | | ????????????# ???????? #???????????????????????? | | ???????????????????????? #???????????????????????? | | ?????????????????????????????????????????????????? | | ?????????????????????????????????????????????????? | | ?????????????????????????????????????????????????? | | ?????????????????????????????????????????????????? | | ?????????????????????????????????????????????????? | | ?????????????????????????????????????????????????? | | ?????????????????????????????????????????????????? | | ?????????????????????????????????????????????????? | +----------------------------------------------------+ Best States ------------- Heat Dissipation 51 Energy Generation 14 Energy Capacity 280 Matter Stores 300 Matter Capacity 400 Sight Range 18 Robot Scan Range 20 Terrain Scan Density 10 Evasion (%) 50 Launcher Accuracy 40 Target Analysis 5 Recoil Reduction 2 Item Schematics ----------------- None Robot Schematics ------------------ None Fabricated ------------ Nothing Alien Tech Used ----------------- None Achievements -------------- None Challenges ------------ None Game ------ Seed SmartbombThrusterTearclaws Manual? 0 Play Time 00:35:18 Cumulative 37.0 hours Start 2020.02.23 @ 23:51:46 End 2020.02.24 @ 00:35:40 Sessions 1 Manual Loads 0 Difficulty Rogue Special Mode None Game No. 85 Rogue 85 Adventurer 0 Explorer 0 Win Type - Total 0 Types 0/0/0/0/0/0/0 Lore% 19 Gallery% 42 Achievement% 28 Wizard Run 0 Options --------- ASCII 0 Keyboard 1 Movement Numpad Keybinds 0 Fullscreen 2 Font 18/TerminusBold Map View 76x50 Tactical HUD 1 Map Filters NONE Filters NONE Steam 1 RUN: 50124b89-7359-42a0-8f13-347cc28df4ba